Cogmind - Beta 11 @@@ ROGUE MODE // 2022.04.02 @ 10:54:14 Player: Awoo-Bot Result: Self-destructed Performance ------------- Evolutions (1) 500 Regions Visited (3) 600 Robots Destroyed (76) 380 Value Destroyed (1558) 1558 Prototype IDs (2) 40 Alien Tech Used (0) 0 Bonus (0) 0 TOTAL SCORE: 3078 Bonus ------- None Cogmind --------- Core Integrity 152/400 Matter 300/300 Energy 280/280 System Corruption 0% Temperature Cool (0) Movement Treading (240) Ox1 Location -9/Materials Parts ------- > --- POWER (1) -------- Cooled Ion Engine > --- PROPULSION (3) --- Light Treads Light Treads Light Treads > --- UTILITY (3) ------ High-capacity Storage Unit > --- WEAPON (2) ------- Particle Gun Heavy Assault Rifle > --- INVENTORY (20) --- Heavy Ion Engine Heavy Ion Engine Armored Wheel Armored Wheel Armored Wheel Large Storage Unit High-capacity Matter Pod (200) Thief Drone Bay Assault Rifle Heavy Assault Rifle Heavy Assault Rifle Heavy Assault Rifle Autogun Mini Grenade Launcher Mini Grenade Launcher Datajack Proton Bomb Trap Proton Bomb Trap Proton Bomb Trap Peak State ------------ > --- POWER ------------ Cooled Ion Engine > --- PROPULSION ------- Light Treads Light Treads Light Treads > --- UTILITY ---------- Improved Heat Sink High-capacity Storage Unit Medium Armor Plating > --- WEAPON ----------- Particle Gun Heavy Assault Rifle > --- INVENTORY -------- Heavy Ion Engine Armored Wheel Armored Wheel Armored Wheel Large Storage Unit High-capacity Matter Pod Thief Drone Bay Medium Laser Assault Rifle Heavy Assault Rifle Heavy Assault Rifle Autogun Mini Grenade Launcher Mini Grenade Launcher Datajack Proton Bomb Trap Proton Bomb Trap Proton Bomb Trap [Rating: 19] Favorites ----------- Power Heavy Ion Engine Engine Heavy Ion Engine Propulsion Light Treads Treads Light Treads Wheel Wheel Utility Large Storage Unit Device Improved Heat Sink Storage Large Storage Unit Protection Light Armor Plating Weapon Assault Rifle Energy Gun Medium Laser Ballistic Gun Assault Rifle Launcher Mini Grenade Launcher Build | -11 -10 -10 -9 ------- Run | Scr Mat Min Mat Slots Evolved 2 | . . . 2 Power . | . . . . Propulsion 1 | . . . 1 Utility 1 | . . . 1 Weapon . | . . . . Parts Attached 51 | 7 11 8 25 Power 7 | 1 4 . 2 Engine 7 | 1 4 . 2 Core . | . . . . Reactor . | . . . . Propulsion 19 | 2 3 3 11 Treads 13 | 2 1 2 8 Leg . | . . . . Wheel 6 | . 2 1 3 Hover . | . . . . Flight . | . . . . Utility 14 | 2 3 4 5 Device 4 | 1 . 2 1 Storage 7 | 1 2 2 2 Processor . | . . . . Hackware . | . . . . Protection 3 | . 1 . 2 Artifact . | . . . . Weapon 11 | 2 1 1 7 Energy Gun 5 | . . 1 4 Energy Cannon . | . . . . Ballistic Gun 5 | 2 1 . 2 Ballistic Cannon . | . . . . Launcher 1 | . . . 1 Special Weapon . | . . . . Impact Weapon . | . . . . Slashing Weapon . | . . . . Piercing Weapon . | . . . . Special Melee Weapon . | . . . . Unidentified Prototypes 2 | . 1 . 1 Parts Lost 8 | . 2 2 4 Power . | . . . . Propulsion 2 | . 1 . 1 Utility 3 | . . 1 2 Weapon 3 | . 1 1 1 Highest Loss Streak 4 | . 1 2 4 To Critical Strikes . | . . . . Average Slot Usage (%) 98 | . 100 99 96 Engine 12 | . 14 14 11 Treads 22 | . 15 22 31 Wheel 7 | . 12 5 1 Device 7 | . 2 13 9 Storage 12 | . 14 14 11 Protection 8 | . 11 . 8 Energy Gun 6 | . . 13 10 Ballistic Gun 19 | . 28 14 11 Naked Turns . | . . . . Heaviest Build 62 | 15 35 33 62 Greatest Support 60 | 40 40 40 60 Greatest Overweight (x) 5 | . 3 3 5 Average Overweight (x) 1 | . 2 1 1 Largest Inventory Capacity 20 | 8 15 15 20 Average Capacity 16 | 7 14 15 19 Most Carried 19 | 4 9 13 19 Average Carried 10 | 2 6 10 15 Final Capacity 20 | 8 15 15 20 Final Carried 19 | 4 9 13 19 Class Distribution -------------------- 79% | Mutant 20% | Scavenger-Mutant Dominant Class ---------------- Mutant | -10/Materials Mutant | -10/Mines Scavenger-Mutant | -9/Materials Resources | -11 -10 -10 -9 ----------- Run | Scr Mat Min Mat Matter Collected 1605 | 276 697 184 448 Remotely 301 | 71 230 . . Salvage Created 2551 | 94 968 550 939 Parts 176 | 3 67 39 67 Haulers Intercepted 1 | . . . 1 Recyclers Shooed 6 | . 4 2 . Parts Field Recycled . | . . . . Retrieved Matter . | . . . . Parts Self-Destructed . | . . . . Prevented . | . . . . Kills | -11 -10 -10 -9 ------- Run | Scr Mat Min Mat Combat Hostiles Destroyed 46 | . 15 8 23 Guns 42 | . 15 8 19 AOE 4 | . . . 4 Classes Destroyed 10 | 1 6 1 2 Worker 7 | . 5 2 . Builder 5 | . 3 1 1 Tunneler 2 | . . 2 . Hauler 1 | . . . 1 Recycler 6 | 1 2 3 . Operator 3 | . 2 . 1 Watcher 6 | . 3 . 3 Swarmer 16 | . 3 6 7 Grunt 22 | . 12 2 8 Sentry 8 | . . . 8 Best Kill Streak 6 | 1 5 4 6 Combat Bots Only 4 | . 4 3 4 Max Kills in Single Turn 3 | 1 2 1 3 Gunslinging . | . . . . Exploded 3 | . . . 3 Melee . | . . . . Uniques/NPCs Destroyed . | . . . . Combat | -11 -10 -10 -9 -------- Run | Scr Mat Min Mat Damage Taken 2607 | . 868 228 1511 Core 441 | . 147 46 248 Absorbed by Shields . | . . . . Regen/Repaired (Parts) 187 | . . . 187 Core Remaining (%) 61 | 100 . 22 . Volleys Fired 228 | 1 100 35 92 Largest 2 | 2 2 2 2 Hottest 88 | 40 40 70 88 Shots Fired 450 | 2 199 69 180 Gun 448 | 2 199 69 178 Cannon . | . . . . Launcher 2 | . . . 2 Special . | . . . . Kinetic 329 | 2 199 38 90 Thermal 119 | . . 31 88 Explosive 2 | . . . 2 Electromagnetic . | . . . . Robot Hit Streak 13 | 2 13 7 12 Robot Miss Streak 5 | . 3 4 5 Penetration Max . | . . . . Secondary Targets 5 | . 2 1 2 Max Gunslinging Chain 1 | . 1 1 1 Shots Hit Robots 277 | 2 117 41 117 Core Hits 123 | 2 48 22 51 Critical Kills 2 | . 1 . 1 Critical Parts Destroyed 2 | . 1 . 1 Critical Strikes 10 | . 2 2 6 Burn 6 | . . 2 4 Destroy 4 | . 2 . 2 Melee Attacks . | . . . . Impact . | . . . . Slashing . | . . . . Piercing . | . . . . Sneak Attacks . | . . . . Combat Hostiles . | . . . . Follow-up Attacks . | . . . . Damage Inflicted 3806 | 23 1563 536 1684 Guns 3598 | 23 1563 536 1476 Cannons . | . . . . Explosions 208 | . . . 208 Melee . | . . . . Ramming . | . . . . Kinetic 2561 | 23 1563 284 691 Thermal 1037 | . . 252 785 Explosive 208 | . . . 208 Electromagnetic . | . . . . Impact . | . . . . Slashing . | . . . . Piercing . | . . . . Highest Corruption . | . . . . Average Corruption . | . . . . Corruption Purged . | . . . . Corruption Blocked . | . . . . Overload Shots . | . . . . Overflow Damage . | . . . . Projectiles . | . . . . Explosions . | . . . . Melee . | . . . . Knockbacks . | . . . . Impact . | . . . . Kinetic . | . . . . Secondary . | . . . . Self-Inflicted Damage 38 | . . . 38 Shots 1 | . . . 1 Rammed . | . . . . Targets Rammed . | . . . . Kicked . | . . . . Crushed . | . . . . Highest Temperature 69 | . 30 12 69 Average Temperature 15 | . 11 6 18 Received Heat Transfer 1113 | . 450 48 615 Siege Activations . | . . . . Robots Corrupted . | . . . . Combat Hostiles . | . . . . Parts Fried . | . . . . Impact Corruptions . | . . . . Robots Melted . | . . . . Combat Hostiles . | . . . . Parts Melted 6 | . . 1 5 Heat Transferred 3404 | . . 888 2516 Parts Sabotaged . | . . . . Parts Stolen . | . . . . Parts Stripped . | . . . . Power Chain Reactions . | . . . . Missiles Intercepted . | . . . . Alert | -11 -10 -10 -9 ------- Run | Scr Mat Min Mat Peak Influence 399 | 5 166 220 399 Initial 7 | . 3 3 7 Average 127 | 1 57 60 239 Maximum Alert Level 1 | . . 1 1 Low Security (%) 74 | 100 100 95 35 Level 1 25 | . . 4 64 Level 2 . | . . . . Level 3 . | . . . . Level 4 . | . . . . Level 5 . | . . . . High Security . | . . . . Max Security . | . . . . Squads Dispatched 6 | . 4 . 2 Investigation 2 | . 2 . . Extermination . | . . . . Reinforcement 4 | . 2 . 2 Assault . | . . . . Garrison . | . . . . Intercept . | . . . . Searches Triggered . | . . . . Construction Impeded . | . . . . Haulers Reinforced . | . . . . Active Scanning Responses . | . . . . Cargo Convoy Interrupts . | . . . . Stealth | -11 -10 -10 -9 --------- Run | Scr Mat Min Mat Distress Signals 2 | . . . 2 Communications Jammed . | . . . . Distress Signals . | . . . . Times Spotted 79 | . 33 8 38 Peak Tracking Total 5 | . 5 3 5 Tactical Retreats 3 | . 1 . 2 Traps | -11 -10 -10 -9 ------- Run | Scr Mat Min Mat Traps Triggered 3 | . 3 . . Indirectly . | . . . . Trap Hack Attempts . | . . . . Triggered . | . . . . Disarmed . | . . . . Reprogrammed . | . . . . Reused . | . . . . Traps Extracted . | . . . . Installed . | . . . . Triggered . | . . . . Most Traps Carried 3 | . . 3 3 Machines | -11 -10 -10 -9 ---------- Run | Scr Mat Min Mat Machines Disabled 1 | . 1 . . Max in Single Turn 1 | . 1 . . Machines Sabotaged . | . . . . Garrisons Compromised . | . . . . Overloaded Fab Kills . | . . . . Hacking | -11 -10 -10 -9 --------- Run | Scr Mat Min Mat Machines Accessed 12 | . 6 1 5 Terminals 9 | . 6 . 3 Fabricators . | . . . . Repair Stations 1 | . . . 1 Recycling Units . | . . . . Scanalyzers 1 | . . . 1 Garrison Access . | . . . . Total Hacks 27 | . 12 1 14 Successful 19 | . 7 1 11 Failed 8 | . 5 . 3 Catastrophic . | . . . . Database Lockouts . | . . . . Manual 18 | . 12 . 6 Terminals 18 | . 12 . 6 Fabricators . | . . . . Repair Stations 4 | . . . 4 Recycling Units . | . . . . Scanalyzers 4 | . . . 4 Garrison Access . | . . . . Terminal Hacks 4 | . 2 1 1 Open Door 1 | . . 1 . Branch Access Points 1 | . . . 1 Unreport Threat 1 | . 1 . . Recall Reinforcements 1 | . 1 . . Fabricator Hacks . | . . . . Repair Station Hacks 4 | . . . 4 Scan Component 2 | . . . 2 Repair 2 | . . . 2 Recycling Unit Hacks . | . . . . Scanalyzer 3 | . . . 3 Insert Component 1 | . . . 1 Analyze 2 | . . . 2 Garrison Access Hacks . | . . . . Unauthorized Hacks 8 | . 5 . 3 Terminals 8 | . 5 . 3 Botnet 8 | . 5 . 3 Fabricators . | . . . . Repair Stations . | . . . . Recycling Units . | . . . . Scanalyzers . | . . . . Garrison Access . | . . . . Data Cores Recovered . | . . . . Used . | . . . . Hacking Detections 9 | . 5 . 4 Full Trace Events 1 | . . . 1 Feedback Events . | . . . . Feedback Blocked . | . . . . Robot Schematics Acquired . | . . . . Robots Built . | . . . . Authchips . | . . . . Time . | . . . . Total Robot Build Rating . | . . . . Part Schematics Acquired 1 | . . . 1 Parts Built . | . . . . Authchips . | . . . . Time . | . . . . Total Part Build Rating . | . . . . Parts Repaired 2 | . . . 2 Time 58 | . . . 58 Parts Recycled . | . . . . Recycled Matter . | . . . . Retrieved Matter . | . . . . Retrieved Components . | . . . . Parts Scanalyzed 1 | . . . 1 Part Schematics Acquired 1 | . . . 1 Parts Damaged . | . . . . Bothacking | -11 -10 -10 -9 ------------ Run | Scr Mat Min Mat Used RIF Installer . | . . . . Robots Hacked . | . . . . Non-combat . | . . . . Combat . | . . . . Robot Hacks Applied . | . . . . Relay Couplers Released . | . . . . Fabnet Peak Effective % . | . . . . Robots Rewired . | . . . . Allies Hacked . | . . . . Hacks Repelled . | . . . . Allies | -11 -10 -10 -9 -------- Run | Scr Mat Min Mat Total Allies . | . . . . Largest Group . | . . . . Highest-Rated Group . | . . . . Highest-Rated Ally . | . . . . Total Orders . | . . . . Ally Attacks . | . . . . Total Damage . | . . . . Kills . | . . . . Allies Corrupted . | . . . . Allies Melted . | . . . . Intel | -11 -10 -10 -9 ------- Run | Scr Mat Min Mat Robot Analysis Total . | . . . . Derelict Logs Recovered . | . . . . Drone Launches . | . . . . Drone Recoveries . | . . . . Exploration | -11 -10 -10 -9 ------------- Run | Scr Mat Min Mat Turns Passed 4301 | 74 1989 573 1665 Spaces Moved 1931 | 41 1044 281 565 Core 7 | 7 . . . Treads 961 | 34 265 160 502 Legs . | . . . . Wheels 963 | . 779 121 63 Hover . | . . . . Flight . | . . . . Fastest Speed 50 | 50 110 125 125 Average Speed 166 | 141 148 144 211 Slowest Speed 240 | 160 240 160 240 Overloaded Moves . | . . . . Propulsion Burnouts . | . . . . Robots Hopped . | . . . . Cave-ins Triggered . | . . . . Exploration Rate (%) 48 | 4 99 42 47 Regions Visited 3 Branch Regions 1 Pre-discovered Areas . | . . . . Known Exits Taken . | . . . . Unknown Exits Taken 3 | 1 1 1 . Scrap Searched 1 | . . 1 . Spaces Dug . | . . . . Terrain Destroyed 18 | . . . 18 Melee . | . . . . Projectile . | . . . . AOE 18 | . . . 18 Terrain Rammed . | . . . . Walls Destroyed . | . . . . Machines Disabled . | . . . . Actions | -11 -10 -10 -9 --------- Run | Scr Mat Min Mat Total 2577 | 52 1287 377 861 Wait 310 | . 116 44 150 Move 1928 | 40 1043 280 565 Hop . | . . . . Pick Up 30 | 4 8 5 13 Fast Attach 19 | 7 4 4 4 Attach 10 | . 2 1 7 Detach 1 | . . . 1 Swap 22 | . 5 3 14 Drop 29 | . 9 5 15 Fire 228 | 1 100 35 92 Melee . | . . . . Ram . | . . . . Kick . | . . . . Crush . | . . . . Escape Stasis . | . . . . Rewire . | . . . . Trap . | . . . . Miscellaneous . | . . . . Route ------- -11/Scrapyard -10/Materials (discovered 5 exits: *Mat x3 / *Min x2) -10/Mines -9/Materials (discovered 2 exits: [*Mat] / *Min) History --------- Turn | Location | Event 3 | -11/Scrapyard | Discovered new exit (range 15) 75 | -11/Scrapyard | Entered Materials 309 | -10/Materials | Build established: Mutant 354 | -10/Materials | Discovered new exit (range 14) 576 | -10/Materials | Discovered new exit (range 15) 1066 | -10/Materials | Discovered new exit (range 15) 1170 | -10/Materials | Discovered new exit (range 16) 1593 | -10/Materials | Core integrity fell below 50% 1619 | -10/Materials | Discovered new exit (range 15) 2064 | -10/Materials | Entered Mines 2154 | -10/Mines | Found a hidden stash of uninstalled traps 2478 | -10/Mines | Discovered new exit (range 7) 2546 | -10/Mines | Found the Drone Emporium 2557 | -10/Mines | Found Prototype Device 2577 | -10/Mines | Assembled infested the area 2637 | -10/Mines | Entered Materials 2637 | -9/Materials | Evolved 2 slots: Propulsion x1, Utility x1 3395 | -9/Materials | Repaired Med. Armor Plating 3423 | -9/Materials | Repaired Assault Rifle 3595 | -9/Materials | Build established: Scavenger-Mutant 3919 | -9/Materials | Identified exit to Mines 4125 | -9/Materials | Core integrity fell below 50% 4175 | -9/Materials | Lost 4 parts (1n2u1w) 4177 | -9/Materials | Discovered new exit (range 16) 4302 | -9/Materials | Self-destructed Last Messages --------------- 04158_ K-01 Serf collects debris. 04158_ G-34 Mercenary destroyed. 04161_ K-01 Serf collects debris. 04163_ Acquired 53 matter. 04164_ K-01 Serf collects debris. 04169_ Acquired 27 matter. 04171_ K-01 Serf collects debris. 04174_ Acquired Hvy. Assault Rifle. 04177_ K-01 Serf collects debris. 04177_ EXIT=FOUND 04181_ K-01 Serf collects debris. 04185_ K-01 Serf cleans the Fusion Modulator. 04187_ K-01 Serf collects debris. 04192_ K-01 Serf cleans the Fusion Modulator. 04195_ K-01 Serf collects debris. 04199_ K-01 Serf cleans the Fusion Modulator. 04218_ K-01 Serf collects debris. 04254_ R-06 Scavenger collects Imp. Ion Engine. 04258_ R-06 Scavenger collects Heat Sink. 04273_ K-01 Serf cleans the Machine. Map ----- +----------------------------------------------------+ | + """"" ###########???????????????????????? | | # """"" ## #???????????????????????? | | #[ ## """""! ## #???????????????????????? | | ##= ## ==[%! ## #???????????????????????? | | ##[ ####+####### #???????????????????????? | | # + """ """ #???????????????????????? | | # # """ """ #???#???????????????????? | | # *%= ^ # """ """ #?? #???????????????????? | | ## ^=^% + #? #???????????????????? | | ?# """ ##########+### #######?????????????? | | ?# """ #?????# !% ?????????? | | ## """ #?????# ! ?????????? | | #% #?????# ?????????? | | = [ #?????### ############## ??????????? | | # % ###???????# #??????????????????????????? | | # !###+#######????# #??????????????????????????? | | ##+### #????# #??????????????????????????? | | % # #????# #????????####??????????????? | | # #????# ####### #??????????????? | | """ # ###### #??????????????? | | """" # """" + #??????????????? | | """" # """" ###### #??????????????? | | """" # """" #????# ##### #??????????????? | | """ # #????# #?????? ###??????????????? | | ###########????# #######+#????????????????? | | #??????????????# #@ #????????????????? | | ##################### + = #????????????????? | | ?# # # # #????????????????? | | ?# """ # """ # ##+#########?????????????? | | ?# """ # """ # / ""??????????? | | ?# """ # """ + ###??????????????? | | ?# !#"" # #????????????????? | | ?# """ #"T ###### #????????????????? | | ?# """ #"" #?#### ## #????????????????? | | ?# """ # #?#""" # #????????????????? | | ?# ########+##?#" #?+????????????????? | | ######+########### #??#"! #??????????????????? | | % ]#??#"" > #??????????????????? | | ########]#??#"| #??????????????????? | | #??????#]#??#" #??????????????????? | | ######+##+####???#%#??#""" #??????????????????? | | #???#]#??#### ##??????????????????? | | " """"" #???#[#?????# #???????????????????? | | """"""""" #???#%#?????# ##+########?????????? | | """ """ #???# #?????# ## #?????????? | | #???# #????## ## #?????????? | | #####+###### # """#?????????? | | ##########+### ## ! # """#?????????? | | ?###%### ## [% + """#?????????? | | # # [ ## # """#?????????? | +----------------------------------------------------+ Best States ------------- Heat Dissipation 42 Energy Generation 14 Energy Capacity 280 Matter Stores 480 Matter Capacity 500 Sight Range 16 Terrain Scan Density 10 Armor Coverage 225 Evasion (%) 40 Recoil Reduction 3 Item Schematics ----------------- Arm. Wheel | -9/Materials | Scanalyzed Robot Schematics ------------------ None Fabricated ------------ Nothing Alien Tech Used ----------------- None Achievements -------------- None Challenges ------------ None Game ------ Seed PropulsionMeleeMapper Manual? 0 Play Time 00:31:15 Cumulative 56.8 hours Start 2022.04.02 @ 09:26:49 End 2022.04.02 @ 10:54:14 Sessions 1 Manual Loads 0 Difficulty Rogue Special Mode None Game No. 94 Rogue 66 Adventurer 28 Explorer 0 Win Type - Total 0 Types 0/0/0/0/0/0/0/0/0 Lore% 23 Gallery% 28 Achievement% 30 Wizard Run 0 Options --------- ASCII 0 Keyboard 0 Movement Mouse Keybinds 0 Fullscreen 1 Font 24/Terminus Map View 84x54 Tactical HUD 1 Map Filters NONE Filters NONE Steam 1 RUN: 4c8131a6-55f7-41c1-87ae-9540cb6fc221